bitfinex-derivatives/quotes_SOLF0:USTF0_20250125
["timestamp","ask_amount","ask_price","bid_price","bid_amount"]
[1737784047364,6.38527748,250.6,250.54,0.02540745]
[1737784047570,3.9915,250.57,250.54,0.02540745]
[1737784049471,6.38527748,250.62,250.54,0.02540745]
[1737784049670,3.9916,250.56,250.55,6.38527748]
[1737784051469,3.9916,250.56,250.54,0.02540745]
[1737784052073,6.38527748,250.62,250.54,0.02540745]
[1737784052265,3.9918,250.55,250.54,0.02540745]
[1737784059880,6.38527748,250.6,250.54,0.02540745]
[1737784060177,6.38527748,250.58,250.54,0.02540745]
[1737784061080,3.9918,250.55,250.54,0.02540745]
[1737784064988,6.38527748,250.58,250.54,0.02540745]
[1737784066086,3.9918,250.55,250.54,0.02540745]
[1737784070192,3.9918,250.55,250.54,7.45e-06]
[1737784098215,4.01695819,250.57,250.54,7.45e-06]
[1737784098616,0.02535819,250.57,250.56,6.38527748]
[1737784099318,0.02535819,250.57,250.54,6.38528493]
[1737784100519,3.9916,250.56,250.54,6.38528493]
[1737784103714,0.02535819,250.57,250.54,6.38528493]
[1737784109923,3.9918,250.55,250.54,6.38528493]
[1737784110129,3.9918,250.55,250.54,7.45e-06]
[1737784122135,0.02535819,250.57,250.54,7.45e-06]
[1737784122337,3.9916,250.56,250.54,7.45e-06]
[1737784125937,3.9916,250.56,250.54,6.38528493]
[1737784126637,0.02535819,250.57,250.54,6.38528493]
[1737784128140,6.41063567,250.57,250.54,7.45e-06]
[1737784128439,3.9918,250.55,250.54,7.45e-06]
[1737784129136,10.37707748,250.55,250.54,7.45e-06]
[1737784129337,3.9918,250.55,250.54,7.45e-06]
[1737784131337,10.37707748,250.55,250.54,7.45e-06]
[1737784135542,3.9918,250.55,250.54,7.45e-06]
[1737784136045,0.02535819,250.57,250.54,6.38528493]
[1737784137744,0.02535819,250.57,250.56,6.38527748]
[1737784149151,0.02535819,250.57,250.56,10.37687748]
[1737784152549,0.02535819,250.57,250.56,6.38527748]
[1737784152748,0.02535819,250.57,250.54,6.38528493]
[1737784153751,0.02535819,250.57,250.54,10.37718493]
[1737784153951,0.02535819,250.57,250.56,6.38527748]
[1737784154452,0.02535819,250.57,250.56,10.37687748]
[1737784157156,0.02535819,250.57,250.56,6.38527748]
[1737784158150,65.50337194,250.65,250.56,6.38527748]
[1737784158346,3.9905,250.63,250.59,6.38527748]
[1737784159254,3.9907,250.62,250.59,6.38527748]
[1737784159955,65.50337194,250.65,250.59,6.38527748]
[1737784160954,6.38527748,250.63,250.58,0.02586444]
[1737784161454,3.9911,250.59,250.58,0.02586444]
[1737784167755,3.9911,250.59,250.58,6.444e-05]
[1737784167960,10.37637748,250.59,250.58,6.444e-05]
[1737784168163,3.9911,250.59,250.58,6.444e-05]
[1737784170960,10.37637748,250.59,250.58,6.444e-05]
[1737784175360,10.37637748,250.59,250.45,6.38527748]
[1737784175567,3.9935,250.45,250.43,6.38527748]
[1737784178367,3.9938,250.42,250.41,0.03007452]
[1737784178573,10.37907748,250.42,250.41,7.452e-05]
[1737784179269,3.996,250.29,250.28,6.38527748]
[1737784179472,6.38527748,250.37,250.28,6.38527748]
[1737784179672,6.38527748,250.39,250.3,6.38527748]
[1737784179972,6.38527748,250.37,250.3,6.38527748]
[1737784180168,6.38527748,250.37,250.28,6.38527748]
[1737784180373,0.02728994,250.36,250.31,0.02587265]
[1737784180674,3.995,250.35,250.31,0.02587265]
[1737784180974,0.02728994,250.36,250.31,0.02587265]
[1737784186072,3.995,250.35,250.31,0.02587265]
[1737784187071,0.02728994,250.36,250.31,0.02587265]
[1737784189577,0.02728994,250.36,250.32,10.38057748]
[1737784189877,0.02728994,250.36,250.34,6.38527748]
[1737784190076,0.02728994,250.36,250.34,10.38027748]
[1737784191779,0.02728994,250.36,250.31,0.02587265]
[1737784193074,3.9951,250.34,250.31,0.02587265]
[1737784193774,6.38527748,250.35,250.31,0.02587265]
[1737784193979,3.9953,250.33,250.31,0.02587265]
[1737784196786,10.38057748,250.33,250.31,7.265e-05]
[1737784201590,3.997,250.22,250.16,6.38527748]
[1737784202488,3.9972,250.21,250.16,6.38527748]
[1737784202789,3.9972,250.21,250.19,0.02815406]
[1737784203789,10.38247748,250.21,250.19,0.02815406]
[1737784206082,10.38247748,250.21,250.08,6.38527748]
[1737784206083,6.38527748,250.21,250.08,6.38527748]
[1737784206289,6.38527748,250.14,250.07,1.3507]
[1737784206493,3.9989,250.1,250.04,6.38527748]
[1737784206684,6.38527748,250.08,250.0,7.73477748]
[1737784207187,0.02944645,250.07,250.01,0.02791945]
[1737784208089,3.9996,250.06,250.01,0.02791945]
[1737784208590,4.0001,250.03,250.01,0.02791945]
[1737784210684,6.38527748,250.04,250.01,0.02791945]
[1737784210890,6.38527748,250.06,250.01,0.02791945]
[1737784211285,6.38527748,250.02,250.01,0.02791945]
[1737784211693,6.38527748,250.02,250.01,1.945e-05]
[1737784211897,6.38527748,250.02,249.9,2.693]
[1737784211898,4.0015,249.94,249.9,2.693]
[1737784212290,6.38527748,249.94,249.87,6.38527748]
[1737784212490,4.0019,249.92,249.87,6.38527748]
[1737784212892,4.03035841,249.92,249.87,6.41392814]
[1737784213192,4.03035841,249.92,249.87,0.02865066]
[1737784214294,4.0024,249.89,249.87,0.02865066]
[1737784215396,9.25504101,249.92,249.82,107.52731126]
[1737784215698,4.0029,249.85,249.82,107.52731126]
[1737784216990,0.02994025,249.86,249.82,107.52731126]
[1737784217197,0.02994025,249.86,249.82,111.53061126]
[1737784220698,0.02994025,249.86,249.84,4.0031]
[1737784222896,4.0019,249.92,249.82,107.52731126]
[1737784223098,4.0019,249.92,249.86,4.0027]
[1737784224099,0.02780102,249.91,249.87,0.02819257]
[1737784228402,0.02780102,249.91,249.87,9.25477517]
[1737784230202,0.02780102,249.91,249.89,4.0022]
[1737784230796,0.02780102,249.91,249.87,9.25477517]
[1737784230998,0.02780102,249.91,249.9,4.0021]
[1737784233002,4.0013,249.96,249.91,4.0019]
[1737784233194,4.001,249.98,249.88,1.3297]
[1737784233597,4.001,249.98,249.9,9.2265826]
[1737784233797,4.001,249.98,249.93,5.90125147]
[1737784234301,0.02810182,249.98,249.95,5.90125147]
[1737784235205,0.02810182,249.98,249.95,9.90255147]
[1737784235898,4.0011,249.97,249.93,5.92965731]
[1737784237699,0.02810182,249.98,249.93,9.93125731]
[1737784239106,4.02900182,249.98,249.93,9.93125731]
[1737784240702,0.02810182,249.98,249.95,4.0013]
[1737784240902,0.02810182,249.98,249.95,9.90255147]
[1737784241102,0.02810182,249.98,249.95,5.90125147]
[1737784242107,0.02810182,249.98,249.95,9.90255147]
[1737784250507,0.02810182,249.98,249.97,4.001]
[1737784250706,0.02810182,249.98,249.97,9.90225147]
[1737784252816,0.02810182,249.98,249.97,5.90125147]
[1737784253016,0.02810182,249.98,249.95,5.90125147]
[1737784254011,4.001,249.97,249.93,5.92965731]
[1737784257118,4.0012,249.96,249.93,5.92965731]
[1737784258222,0.02810182,249.98,249.93,5.92965731]
[1737784258418,4.0013,249.95,249.93,5.92965731]
[1737784258816,5.90125147,249.95,249.93,0.02840584]
[1737784259221,4.0015,249.94,249.93,0.02840584]
[1737784261918,5.90125147,249.94,249.82,107.52731126]
[1737784262125,5.90125147,249.83,249.67,5.90125147]
[1737784262321,14.641,249.93,249.59,3.8592]
[1737784262322,5.90125147,249.74,249.73,123.22562588]
[1737784262528,5.90125147,249.74,249.73,98.35172588]
[1737784262724,5.90125147,249.74,249.73,80.93502588]
[1737784262924,5.90125147,249.74,249.73,67.43182588]
[1737784263122,5.90125147,249.74,249.73,36.76432588]
[1737784263429,4.0049,249.73,249.71,0.0295541]
[1737784263627,9.24558609,249.72,249.71,0.0295541]
[1737784264422,9.24558609,249.72,249.54,13.06965473]
[1737784264423,4.0052,249.71,249.7,181.76250919]
[1737784264628,4.0052,249.71,249.7,141.28855879]
[1737784265023,4.0054,249.7,249.54,13.06965473]
[1737784265224,9.24558609,249.72,249.54,22.31524082]
[1737784265425,0.02913208,249.64,249.6,0.03078527]
[1737784268523,9.24558609,249.63,249.6,0.03078527]
[1737784268927,9.24558609,249.63,249.49,3.9251]
[1737784269123,9.24558609,249.58,249.49,3.9251]
[1737784269328,9.24558609,249.55,249.49,2.6464]
[1737784269527,9.24558609,249.55,249.42,1.2929]
[1737784269730,9.24558609,249.55,249.42,3.9311]
[1737784269930,9.24558609,249.52,249.42,3.9311]
[1737784270128,0.02865781,249.51,249.46,0.02893055]
[1737784270528,9.24558609,249.49,249.46,0.02893055]
[1737784273134,0.02865781,249.51,249.46,0.02893055]
[1737784273532,0.02865781,249.51,249.49,4.0087]
[1737784274429,9.24558609,249.5,249.35,201.24558609]
[1737784274629,9.24558609,249.5,249.35,9.24558609]
[1737784275635,0.02551018,249.45,249.4,0.02693366]
[1737784275832,9.24558609,249.53,249.35,9.24558609]
[1737784276031,0.0299666,249.45,249.4,0.02651863]
[1737784276228,0.0299666,249.45,249.44,4.0095]
[1737784281344,4.0073,249.58,249.5,4.0085]
[1737784281739,5.47445837,249.59,249.44,1.3258]
[1737784281939,9.48165837,249.59,249.52,4.0082]
[1737784282142,5.47445837,249.59,249.46,9.24558609]
[1737784282541,9.24558609,249.52,249.5,0.02814277]
[1737784283143,4.0084,249.52,249.45,5.3412]
[1737784283343,0.03042872,249.55,249.45,1.3319]
[1737784284345,0.03042872,249.55,249.48,0.02591387]
[1737784285147,0.03042872,249.55,249.49,4.0087]
[1737784285447,0.03042872,249.55,249.48,0.02591387]
[1737784285746,0.03042872,249.55,249.45,1.3319]
[1737784286345,0.03042872,249.55,249.5,4.0085]
[1737784286548,4.03822872,249.55,249.43,9.24558609]
[1737784287041,4.03822872,249.55,249.49,4.0087]
[1737784287246,4.03822872,249.55,249.38,1.3258]
[1737784287247,0.03042872,249.55,249.38,1.3258]
[1737784287446,5.47445837,249.56,249.45,9.24558609]
[1737784287949,5.47445837,249.56,249.5,4.0085]
[1737784288248,5.47445837,249.56,249.45,9.24558609]
[1737784288451,0.02893475,249.55,249.51,0.02916211]
[1737784289148,0.02893475,249.55,249.51,4.03746211]
[1737784289649,0.02893475,249.55,249.52,4.0081]
[1737784290248,0.02893475,249.55,249.51,0.02916211]
[1737784292553,0.02893475,249.55,249.45,9.24558609]
[1737784293250,0.02893475,249.55,249.48,4.0089]
[1737784293451,0.02893475,249.55,249.45,9.24558609]
[1737784293753,0.02893475,249.55,249.49,0.03022591]
[1737784296154,4.008,249.54,249.49,0.03022591]
[1737784296657,0.02893475,249.55,249.49,9.275812]
[1737784297757,0.02893475,249.55,249.52,4.0082]
[1737784299056,20.55858656,249.54,249.52,4.0082]
[1737784300859,20.55858656,249.54,249.51,4.0084]
[1737784301564,20.55858656,249.54,249.52,4.0082]
[1737784301754,20.55858656,249.54,249.5,2.6344]
[1737784301959,0.02893475,249.55,249.5,2.6344]
[1737784302260,0.02893475,249.55,249.53,4.0081]
[1737784304365,107.85634699,249.54,249.53,4.0081]
[1737784307570,56.93292963,249.54,249.53,4.0081]
[1737784310565,20.22323865,249.54,249.53,4.0081]
[1737784311571,20.22323865,249.54,249.5,3.9766]
[1737784311772,20.22323865,249.54,249.52,4.0082]
[1737784312267,20.22323865,249.54,249.51,5.92229671]
[1737784312567,0.02893475,249.55,249.5,5.92229671]
[1737784313272,0.02893475,249.55,249.52,4.0082]
[1737784313678,22.29287776,249.55,249.52,9.93049671]
[1737784316074,0.02893475,249.55,249.52,9.93049671]
[1737784321882,0.02893475,249.55,249.52,5.92229671]
[1737784322575,0.02893475,249.55,249.51,0.02733671]
[1737784323477,4.0079,249.54,249.51,0.02733671]
[1737784323683,0.02893475,249.55,249.51,0.02733671]
[1737784324378,4.0082,249.52,249.51,0.02733671]
[1737784328480,4.03673475,249.55,249.51,0.02733671]
[1737784328684,0.02893475,249.55,249.51,5.94963342]
[1737784329086,0.02893475,249.55,249.53,4.0081]
[1737784329289,0.02893475,249.55,249.53,5.92229671]
[1737784331980,0.02893475,249.55,249.54,4.0079]
[1737784332785,0.02893475,249.55,249.54,5.92229671]
[1737784334188,0.02893475,249.55,249.52,5.92229671]
[1737784334386,5.92229671,249.62,249.52,5.92229671]
[1737784334585,0.02884058,249.56,249.52,5.92229671]
[1737784335090,4.03644058,249.56,249.52,5.92229671]
[1737784336288,0.02884058,249.56,249.52,5.92229671]
[1737784336489,4.0077,249.55,249.52,5.92229671]
[1737784336690,0.02884058,249.56,249.52,9.93049671]
[1737784336989,0.02884058,249.56,249.52,5.92229671]
[1737784338098,4.03644058,249.56,249.52,5.92229671]
[1737784339297,0.02884058,249.56,249.49,5.92229671]
[1737784339696,0.02884058,249.56,249.46,5.92229671]
[1737784340297,4.0085,249.51,249.46,5.92229671]
[1737784340703,4.03418863,249.51,249.46,5.92229671]
[1737784340894,4.03418863,249.51,249.48,5.92229671]
[1737784341194,0.02568863,249.51,249.44,5.92229671]
[1737784341992,4.0087,249.49,249.44,5.92229671]
[1737784342194,0.02568863,249.51,249.44,5.92229671]
[1737784343094,4.0089,249.48,249.44,5.92229671]
[1737784343301,5.92229671,249.47,249.39,5.92229671]
[1737784343798,0.02535264,249.45,249.39,5.92229671]
[1737784344898,4.0096,249.44,249.39,5.92229671]
[1737784345198,0.02535264,249.45,249.39,5.92229671]
[1737784346098,4.0098,249.43,249.39,5.92229671]
[1737784347697,4.0099,249.42,249.39,5.92229671]
[1737784352402,0.02535264,249.45,249.41,5.92229671]
[1737784352602,5.92229671,249.51,249.43,5.92229671]
[1737784352905,5.56598575,249.54,249.31,2.6508]
[1737784352906,0.02831362,249.49,249.47,5.92229671]
[1737784353099,4.0086,249.5,249.47,5.92229671]
[1737784353303,4.03549112,249.5,249.3,192.0]
[1737784353502,4.0086,249.5,249.3,191.15325057]
[1737784353702,0.02870044,249.42,249.3,191.15325057]
[1737784353904,4.0086,249.5,249.43,4.0096]
[1737784354206,4.0086,249.5,249.47,5.92229671]
[1737784356506,0.02658997,249.51,249.47,5.92229671]
[1737784356701,4.0086,249.5,249.47,5.92229671]
[1737784356901,0.02658997,249.51,249.47,5.92229671]
[1737784357104,0.02658997,249.51,249.49,5.92229671]
[1737784358110,0.02658997,249.51,249.49,9.93089671]
[1737784358707,4.0075,249.57,249.5,4.0084]
[1737784358908,4.0075,249.57,249.54,5.92229671]
[1737784359902,0.02969407,249.58,249.56,5.92229671]
[1737784362112,4.03699407,249.58,249.56,5.92229671]
[1737784363206,0.02969407,249.58,249.56,5.92229671]
[1737784366208,0.02969407,249.58,249.56,9.92979671]
[1737784366810,74.46598119,249.65,249.56,5.92229671]
[1737784367011,8.54479671,249.7,249.62,5.92229671]
[1737784367212,7.21539671,249.7,249.62,5.92229671]
[1737784367910,0.02664583,249.68,249.64,0.03011288]
[1737784368110,4.0062,249.65,249.64,0.03011288]
[1737784372314,4.0062,249.65,249.64,1.288e-05]
[1737784393831,5.92229671,249.66,249.52,5.92229671]
[1737784394133,9.92979671,249.57,249.51,4.0083]
[1737784394931,0.0272482,249.56,249.52,0.03045788]
[1737784395327,0.0272482,249.56,249.52,5.95275459]
[1737784399634,4.0348482,249.56,249.52,5.95275459]
[1737784400835,0.0272482,249.56,249.52,9.96095459]
[1737784401045,0.0272482,249.56,249.54,5.92229671]
[1737784403134,5.92229671,249.66,249.54,5.92229671]
[1737784403338,5.92229671,249.73,249.64,5.92229671]
[1737784403530,5.92229671,249.71,249.64,5.92229671]
[1737784403735,5.92229671,249.69,249.6,5.92229671]
[1737784403936,4.0061,249.66,249.6,5.92229671]
[1737784404334,0.02776349,249.65,249.62,5.92229671]
[1737784404530,5.92229671,249.71,249.62,5.92229671]
[1737784404739,0.02851318,249.66,249.62,5.92229671]
[1737784405543,4.0062,249.65,249.61,0.02575304]
[1737784406234,0.02851318,249.66,249.61,0.02575304]
[1737784406440,4.0064,249.64,249.61,0.02575304]
[1737784408242,4.0065,249.63,249.61,0.02575304]
[1737784411042,9.92879671,249.63,249.61,5.304e-05]
[1737784415646,4.0065,249.63,249.61,5.304e-05]
[1737784417146,9.92879671,249.63,249.61,5.304e-05]
[1737784423450,4.0066,249.62,249.61,5.304e-05]
[1737784446083,5.92229671,249.52,249.41,199.85299602]
[1737784446383,5.92229671,249.48,249.4,3.8908]
[1737784446683,4.0097,249.43,249.4,3.8908]
[1737784446978,5.92229671,249.46,249.4,3.8908]
[1737784447180,0.02666906,249.44,249.4,3.8908]
[1737784448176,2.6,249.54,249.43,5.92229671]
[1737784448177,5.92229671,249.51,249.43,5.92229671]
[1737784448377,5.92229671,249.53,249.45,5.92229671]
[1737784449386,0.02673919,249.51,249.47,0.02711531]
[1737784455885,5.9490359,249.51,249.47,0.02711531]
[1737784456384,4.0086,249.5,249.49,5.92229671]
[1737784456585,8.16503967,249.68,249.49,5.92229671]
[1737784456586,5.92229671,249.59,249.49,5.92229671]
[1737784456784,5.92229671,249.59,249.51,5.92229671]
[1737784456983,9.92959671,249.59,249.51,9.93069671]
[1737784457294,5.92229671,249.59,249.51,9.93069671]
[1737784457582,9.92979671,249.57,249.51,4.0084]
[1737784457787,9.95761518,249.57,249.53,0.02680089]
[1737784458791,4.0076,249.56,249.53,0.02680089]
[1737784459584,5.95011518,249.57,249.53,0.02680089]
[1737784459790,4.0078,249.55,249.53,0.02680089]
[1737784461793,5.95011518,249.57,249.53,0.02680089]
[1737784462092,9.95761518,249.57,249.53,0.02680089]
[1737784462290,4.03531847,249.57,249.53,0.02680089]
[1737784463094,4.0076,249.56,249.53,0.02680089]
[1737784468500,3.4102634,249.56,249.53,0.02680089]
[1737784469998,4.0078,249.55,249.53,0.02680089]
[1737784471105,4.03541847,249.57,249.53,0.02680089]
[1737784471506,0.02781847,249.57,249.53,0.02680089]
[1737784472207,4.03541847,249.57,249.53,0.02680089]
[1737784475611,0.02781847,249.57,249.53,9.9570976]
[1737784477608,0.02781847,249.57,249.53,5.9490976]
[1737784480415,0.02781847,249.57,249.55,5.92229671]
[1737784480612,5.92229671,249.67,249.55,5.92229671]
[1737784480811,4.0063,249.64,249.59,5.92229671]
[1737784481008,5.92229671,249.61,249.55,5.92229671]
[1737784481409,4.007,249.6,249.55,5.92229671]
[1737784481616,5.92229671,249.65,249.57,5.92229671]
[1737784481917,0.02753695,249.6,249.57,5.92229671]
[1737784483120,0.02753695,249.6,249.58,4.0073]
[1737784483818,0.02753695,249.6,249.59,5.92229671]
[1737784493623,0.02753695,249.6,249.55,5.95128786]
[1737784493829,0.02753695,249.6,249.55,0.02899115]
[1737784495229,4.0074,249.58,249.55,0.02899115]
[1737784498134,4.0076,249.56,249.55,0.02899115]
[1737784500134,0.02753695,249.6,249.55,0.02899115]
[1737784500630,0.02753695,249.6,249.55,5.95128786]
[1737784501235,4.0073,249.58,249.55,5.95128786]
[1737784501432,0.02753695,249.6,249.55,0.02899115]
[1737784501738,0.02753695,249.6,249.42,1.2872]
[1737784501739,5.92229671,249.56,249.44,5.92229671]
[1737784501941,5.92229671,249.51,249.42,5.92229671]
[1737784502935,4.0089,249.48,249.44,0.02895008]
[1737784503335,0.02548368,249.49,249.46,5.92229671]
[1737784507339,4.03418368,249.49,249.46,5.92229671]
[1737784509545,4.0089,249.48,249.46,5.92229671]
[1737784510347,0.02548368,249.49,249.44,5.95124679]
[1737784510548,4.0094,249.45,249.44,0.02895008]
[1737784514051,4.0094,249.45,249.44,5.95124679]
[1737784516153,4.0094,249.45,249.44,0.02895008]
[1737784519654,4.0092,249.47,249.44,0.02895008]
[1737784520449,0.02548368,249.49,249.44,0.02895008]
[1737784521346,4.0091,249.47,249.44,0.02895008]
[1737784521553,0.02548368,249.49,249.45,5.92229671]
[1737784523049,0.02548368,249.49,249.47,9.93129671]
[1737784527347,4.0074,249.58,249.52,4.0082]
[1737784527554,4.0074,249.58,249.53,5.92229671]
[1737784528559,4.03811805,249.58,249.53,5.95238811]
[1737784529859,4.03811805,249.58,249.53,9.96038811]
[1737784530961,9.93019671,249.55,249.53,0.0300914]
[1737784532050,4.0083,249.52,249.41,5.92229671]
[1737784532258,5.92229671,249.43,249.35,5.92229671]
[1737784532761,5.92229671,249.39,249.33,142.37073603]
[1737784532960,5.92229671,249.39,249.33,136.44843932]
[1737784533257,4.0111,249.34,249.33,132.43966841]
[1737784533458,4.0111,249.34,249.33,42.56448404]
[1737784533662,4.0111,249.34,249.33,28.98348404]
[1737784533961,5.92229671,249.35,249.27,7.54538404]
[1737784534261,5.92229671,249.28,249.27,7.54538404]
[1737784534564,5.94933564,249.3,249.27,7.54538404]
[1737784534861,5.92229671,249.28,249.27,7.54538404]
[1737784535061,0.03073869,249.31,249.27,7.54538404]
[1737784535264,0.03073869,249.31,249.28,5.92229671]
[1737784535653,0.03073869,249.31,249.3,5.92229671]
[1737784537658,0.03073869,249.31,249.27,11.88297349]
[1737784538052,0.03073869,249.31,249.29,4.0118]
[1737784540162,0.03073869,249.31,249.27,11.88297349]
[1737784541159,0.03073869,249.31,249.29,4.0118]
[1737784542358,0.03073869,249.31,249.27,6.6262]
[1737784545264,0.03073869,249.31,249.27,4.0122]
[1737784545665,0.03073869,249.31,249.26,0.02976091]
[1737784546865,4.0118,249.3,249.26,0.02976091]
[1737784550563,4.012,249.29,249.26,0.02976091]
[1737784551670,0.03073869,249.31,249.26,0.02976091]
[1737784551969,4.0121,249.28,249.26,0.02976091]
[1737784552159,0.03073869,249.31,249.26,0.02976091]
[1737784552361,4.0118,249.3,249.26,0.02976091]
[1737784553566,4.0119,249.29,249.26,0.02976091]
[1737784554165,0.03073869,249.31,249.26,0.02976091]
[1737784554773,0.03073869,249.31,249.27,4.0122]
[1737784554972,0.03073869,249.31,249.26,0.02976091]
[1737784555869,0.03073869,249.31,249.29,4.0119]
[1737784557367,73.72333216,249.4,249.28,2.6963]
[1737784557567,73.72333216,249.4,249.33,4.0113]
[1737784557568,4.0103,249.39,249.33,4.0113]
[1737784557765,4.0103,249.39,249.34,5.93038346]
[1737784558174,79.65371562,249.4,249.32,5.93038346]
[1737784558577,0.02533746,249.38,249.34,0.02801179]
[1737784559878,0.02533746,249.38,249.36,9.94108346]
[1737784560175,5.93038346,249.47,249.36,5.93038346]
[1737784560372,5.93038346,249.47,249.39,5.93038346]
[1737784560671,4.0094,249.45,249.39,9.94068346]
[1737784560870,5.93038346,249.47,249.39,5.93038346]
[1737784561064,5.95644449,249.45,249.41,0.02624715]
[1737784561274,5.93038346,249.45,249.37,5.93038346]
[1737784561476,4.0095,249.44,249.41,0.02909028]
[1737784561676,5.96122845,249.45,249.41,0.02909028]
[1737784561876,5.93038346,249.43,249.41,0.02909028]
[1737784562073,9.94018346,249.43,249.41,0.02909028]
[1737784562277,5.93038346,249.37,249.28,5.93038346]
[1737784563274,0.02668176,249.35,249.3,0.02867271]
[1737784563777,5.95706522,249.35,249.3,0.02867271]
[1737784563976,5.93038346,249.33,249.3,0.02867271]
[1737784564677,4.0115,249.32,249.3,0.02867271]
[1737784564877,5.95706522,249.35,249.3,5.95905617]
[1737784564878,0.02668176,249.35,249.3,5.95905617]
[1737784565071,0.02668176,249.35,249.32,5.93038346]
[1737784565476,0.02668176,249.35,249.3,5.95905617]
[1737784565679,0.02668176,249.35,249.3,7.271e-05]
[1737784566073,4.0116,249.31,249.3,7.271e-05]
[1737784566772,4.0113,249.33,249.3,7.271e-05]
[1737784567378,0.02668176,249.35,249.3,7.271e-05]
[1737784570381,0.02668176,249.35,249.3,4.01177271]
[1737784570980,0.02668176,249.35,249.33,4.0112]
[1737784571581,4.0101,249.41,249.32,9.27347915]
[1737784571782,8.15299171,249.45,249.34,4.011]
[1737784572084,4.0099,249.42,249.34,4.011]
[1737784572784,0.02699701,249.4,249.36,0.02818278]
[1737784574786,4.03719701,249.4,249.36,0.02818278]
[1737784574982,0.02699701,249.4,249.36,0.02818278]
[1737784575286,9.27347915,249.39,249.36,8.278e-05]
[1737784575485,4.0106,249.38,249.36,8.278e-05]
[1737784578481,4.0123,249.27,249.19,13.28687915]
[1737784578687,9.27347915,249.33,249.19,9.27347915]
[1737784579684,4.0123,249.27,249.24,0.02668122]
[1737784580983,0.02828736,249.28,249.24,0.02668122]
[1737784581185,4.0114,249.33,249.24,0.02668122]
[1737784581588,9.27347915,249.39,249.24,0.02668122]
[1737784581788,4.011,249.35,249.28,4.0121]
[1737784582086,9.27347915,249.39,249.23,9.27347915]
[1737784582282,4.0117,249.31,249.29,0.03082423]
[1737784582481,4.0117,249.31,249.21,9.27347915]
[1737784583690,0.0296575,249.28,249.24,4.03984262]
[1737784583890,4.0118,249.3,249.24,4.0127]
[1737784584091,0.0271043,249.28,249.24,4.04270019]
[1737784586996,0.0271043,249.28,249.26,4.0123]
[1737784587293,4.0114,249.33,249.24,9.30347934]
[1737784587495,9.27347915,249.39,249.24,9.30347934]
[1737784587693,4.0115,249.32,249.24,9.27347915]
[1737784588195,0.02845996,249.3,249.26,0.03066021]
[1737784588396,4.04025996,249.3,249.26,0.03066021]
[1737784589691,0.02845996,249.3,249.26,0.03066021]
[1737784591097,13.28567915,249.28,249.26,6.021e-05]
[1737784591697,5.93875813,249.27,249.26,6.021e-05]
[1737784593393,4.0122,249.28,249.26,6.021e-05]
[1737784594698,0.02845996,249.3,249.26,6.021e-05]
[1737784595195,9.30340483,249.3,249.26,6.021e-05]
[1737784596100,4.0122,249.28,249.26,6.021e-05]
[1737784600799,4.04035996,249.3,249.26,6.021e-05]
[1737784601096,0.02845996,249.3,249.26,6.021e-05]
[1737784602601,0.02845996,249.3,249.22,9.27494487]
[1737784602798,0.02845996,249.3,249.11,2.7107]
[1737784602999,9.27494487,249.38,249.22,9.27494487]
[1737784603199,4.0116,249.32,249.25,4.0126]
[1737784603802,0.02606428,249.31,249.26,0.02525685]
[1737784604001,4.03766428,249.31,249.26,0.02525685]
[1737784605101,0.02606428,249.31,249.26,0.02525685]
[1737784605302,4.0122,249.27,249.26,5.685e-05]
[1737784610904,4.012,249.29,249.26,5.685e-05]
[1737784611099,0.02606428,249.31,249.26,5.685e-05]
[1737784613300,4.0119,249.29,249.26,5.685e-05]
[1737784613603,0.02606428,249.31,249.26,5.685e-05]
[1737784615106,4.03776428,249.31,249.26,5.685e-05]
[1737784615806,0.02606428,249.31,249.26,5.685e-05]
[1737784617109,0.02606428,249.31,249.27,4.0122]
[1737784617315,0.02606428,249.31,249.26,5.685e-05]
[1737784617711,0.02606428,249.31,249.29,4.0119]
[1737784618107,4.0111,249.35,249.28,5.93236109]
[1737784618410,4.0111,249.35,249.3,4.0117]
[1737784618614,5.93236109,249.38,249.28,5.93236109]
[1737784618814,4.0107,249.37,249.31,4.0116]
[1737784619421,0.02748806,249.36,249.32,0.02657827]
[1737784620416,0.02748806,249.36,249.32,4.03797827]
[1737784620617,0.02748806,249.36,249.32,0.02657827]
[1737784621215,4.0112,249.34,249.32,0.02657827]
[1737784623317,4.0112,249.34,249.23,2.57134278]
[1737784623721,9.26769025,249.39,249.23,2.57134278]
[1737784624521,0.02821807,249.33,249.29,0.02658183]
[1737784624918,4.0115,249.32,249.29,0.02658183]
[1737784625219,0.02821807,249.33,249.29,0.02658183]
[1737784625518,4.0117,249.31,249.29,0.02658183]
[1737784627822,4.0115,249.32,249.29,0.02658183]
[1737784629120,4.0117,249.31,249.29,0.02658183]
[1737784630024,4.03961807,249.33,249.29,0.02658183]
[1737784631215,4.0115,249.32,249.29,0.02658183]
[1737784632126,4.0117,249.31,249.29,0.02658183]
[1737784637228,4.0115,249.32,249.29,0.02658183]